bitfinex-derivatives/quotes_ETHF0:USTF0_20250712
["timestamp","ask_amount","ask_price","bid_price","bid_amount"]
[1752362265799,1.6093,2939.5,2939.4,1.53621048]
[1752362265997,2.5868,2939.5,2939.4,2.19301048]
[1752362269605,0.68011,2939.7,2939.4,2.19301048]
[1752362269606,1.6093,2940.1,2940.0,0.6568]
[1752362269800,2.5868,2940.1,2940.0,5.40067048]
[1752362270002,2.5868,2940.1,2940.0,3.88783]
[1752362270908,2.5868,2940.1,2940.0,4.54463]
[1752362271507,2.5868,2940.1,2940.0,6.41773]
[1752362272205,2.5868,2940.4,2940.3,0.6568]
[1752362272506,2.5868,2940.4,2940.3,6.31450048]
[1752362273312,2.5868,2940.4,2940.3,3.2078]
[1752362273313,3.26674,2940.4,2940.3,3.2078]
[1752362273804,3.26674,2940.4,2939.9,0.85604048]
[1752362273805,3.26683,2940.0,2939.9,3.2078]
[1752362274904,2.2894,2939.7,2939.6,3.8646]
[1752362275110,3.2669,2939.7,2939.6,3.8646]
[1752362275512,3.2669,2939.7,2939.6,3.2078]
[1752362279014,3.2669,2939.7,2939.6,3.8646]
[1752362279613,3.2669,2939.7,2939.6,3.2078]
[1752362280612,3.2669,2939.7,2939.6,5.7625]
[1752362280916,3.2669,2939.7,2939.6,4.8486]
[1752362281107,3.2669,2939.7,2939.6,3.2078]
[1752362281411,3.2669,2939.7,2939.3,3.8646]
[1752362281412,0.68019,2939.4,2939.3,3.8646]
[1752362281617,0.68019,2939.4,2939.3,3.2078]
[1752362281618,3.26699,2939.4,2939.3,3.2078]
[1752362282712,2.28954,2939.1,2939.0,4.06384048]
[1752362282908,3.26711,2938.8,2938.7,28.2976]
[1752362283114,3.26711,2938.8,2938.7,3.2078]
[1752362284312,3.26711,2938.8,2938.7,4.54493]
[1752362284513,3.26711,2938.8,2938.7,5.52893]
[1752362285617,3.26711,2938.8,2938.7,4.8486]
[1752362286020,3.26711,2938.8,2938.7,6.52053]
[1752362286215,1.924,2938.8,2938.7,6.52053]
[1752362286525,2.542,2938.8,2938.7,6.52053]
[1752362286817,3.22231,2938.8,2938.7,6.52053]
[1752362287209,2.542,2938.8,2938.7,6.52053]
[1752362287515,2.497,2939.1,2939.0,3.20576]
[1752362287722,3.17724,2939.1,2939.0,1.5339]
[1752362289319,3.17724,2939.1,2939.0,2.21416]
[1752362289519,3.17724,2939.1,2939.0,1.5339]
[1752362289720,3.17724,2939.1,2939.0,2.21416]
[1752362289917,2.497,2939.1,2939.0,1.5339]
[1752362290718,2.497,2939.1,2939.0,2.21416]
[1752362291323,2.497,2939.1,2939.0,5.42196]
[1752362291516,2.497,2939.1,2939.0,6.41356]
[1752362293623,3.17724,2939.1,2939.0,6.41356]
[1752362294017,2.497,2939.1,2939.0,6.41356]
[1752362294520,3.17724,2939.1,2939.0,6.41356]
[1752362295524,2.497,2939.1,2939.0,6.41356]
[1752362296122,2.49949875,2939.1,2939.0,6.41356]
[1752362296328,0.00249875,2939.1,2939.0,6.41356]
[1752362303128,0.00249875,2939.1,2939.0,29.82356]
[1752362304830,0.00249875,2939.1,2939.0,30.67879938]
[1752362305234,0.9176,2939.4,2939.3,0.68019]
[1752362305425,0.9176,2939.4,2939.3,4.50289]
[1752362305730,0.9176,2939.4,2939.3,6.41349]
[1752362305930,0.9176,2939.4,2939.3,7.26872938]
[1752362307034,0.9176,2939.6,2939.5,2.5255]
[1752362307228,0.9176,2939.6,2939.5,4.06088938]
[1752362307427,0.9614,2940.0,2939.9,1.29496]
[1752362307626,1.96509687,2940.0,2939.9,6.34959938]
[1752362307926,3.26312687,2940.0,2939.9,7.26859938]
[1752362308229,4.18072687,2940.0,2939.9,6.27699938]
[1752362308630,3.17703,2940.0,2939.9,6.27699938]
[1752362308831,3.17703,2940.0,2939.9,5.59693938]
[1752362309129,2.497,2939.6,2939.5,2.15026938]
[1752362309329,2.497,2939.6,2939.5,3.06926938]
[1752362309631,2.497,2939.6,2939.5,4.06086938]
[1752362310029,3.17713,2939.6,2939.5,4.06086938]
[1752362310725,1.5356,2939.6,2939.5,4.06086938]
[1752362310930,0.9176,2939.6,2939.5,4.91581035]
[1752362311634,3.17709,2939.8,2939.7,1.295]
[1752362311936,3.17709,2939.8,2939.7,3.8227]
[1752362312228,3.17715,2939.5,2939.4,28.81987]
[1752362312428,2.497,2939.5,2939.4,28.81987]
[1752362312623,2.497,2939.5,2939.4,29.81147]
[1752362313532,3.17715,2939.5,2939.4,29.81147]
[1752362314036,3.17715,2939.5,2939.4,26.60367]
[1752362314334,3.17715,2939.5,2939.4,29.81147]
[1752362315632,3.17715,2939.5,2939.4,28.1397]
[1752362315827,3.17715,2939.5,2939.4,3.2078]
[1752362316024,3.22236,2939.1,2939.0,0.68026]
[1752362316330,2.24179,2939.0,2938.9,0.68027]
[1752362316530,3.16199,2939.0,2938.9,0.68027]
[1752362316927,0.68029,2938.9,2938.8,4.8071]
[1752362317235,0.68029,2938.9,2938.8,3.8117]
[1752362317236,3.16199,2938.9,2938.8,3.8117]
[1752362318837,3.16199,2938.9,2938.8,4.49201]
[1752362319633,2.4817,2938.9,2938.6,26.09608035]
[1752362319934,3.16207,2938.6,2938.5,0.68036]
[1752362320138,2.4817,2938.6,2938.5,24.07536]
[1752362321436,2.4817,2938.6,2938.5,24.67926]
[1752362322039,2.4817,2938.6,2938.5,26.66646]
[1752362326543,3.16206,2938.6,2938.5,26.66646]
[1752362328546,3.16206,2938.6,2938.5,25.66916]
[1752362329946,3.16206,2938.6,2938.5,26.63746]
[1752362330847,3.16206,2938.6,2938.5,27.49326744]
[1752362331248,2.4817,2938.6,2938.5,27.49326744]
[1752362332051,3.16206,2938.6,2938.5,27.49326744]
[1752362332350,2.4817,2938.6,2938.5,27.49326744]
[1752362336053,3.16206,2938.6,2938.5,27.49326744]
[1752362336449,2.4817,2938.6,2938.5,27.49326744]
[1752362338959,3.16197,2939.0,2938.9,3.27137]
[1752362339256,3.16197,2939.0,2938.9,4.12717744]
[1752362340762,2.4817,2939.0,2938.9,4.12717744]
[1752362340960,3.16197,2939.0,2938.9,3.44690744]
[1752362341161,3.16197,2939.0,2938.9,4.12719744]
[1752362341359,3.16197,2939.0,2938.9,3.12989744]
[1752362341961,3.16205,2938.7,2938.6,25.47904744]
[1752362343259,3.16205,2938.7,2938.6,1.45970744]
[1752362343558,3.16205,2938.7,2938.6,24.79970744]
[1752362345060,3.16205,2938.7,2938.6,25.48006744]
[1752362345663,3.16205,2938.7,2938.6,24.79970744]
[1752362346260,3.16205,2938.7,2938.6,25.48006744]
[1752362348368,3.16205,2938.7,2938.6,2.24746]
[1752362349969,3.16205,2938.7,2938.6,3.16326]
[1752362351070,3.16205,2938.7,2938.6,2.4829]
[1752362351270,3.16205,2938.7,2938.6,3.16326]
[1752362360873,2.4817,2938.7,2938.6,3.16326]
[1752362361069,3.16204,2938.7,2938.6,3.16326]
[1752362361274,1.6006,2939.0,2938.9,3.16317]
[1752362361472,2.60759697,2939.0,2938.9,4.01897744]
[1752362361672,3.50809697,2939.0,2938.9,4.01897744]
[1752362361977,4.18838697,2939.0,2938.9,4.01897744]
[1752362363069,0.68029,2938.9,2938.8,23.303]
[1752362363269,3.18139,2938.9,2938.8,23.303]
[1752362363471,3.18139,2938.9,2938.8,23.98331]
[1752362363768,3.18139,2938.9,2938.8,23.303]
[1752362363974,2.28091,2938.8,2938.7,23.98631]
[1752362364175,3.18141,2938.8,2938.7,23.98631]
[1752362364570,2.5011,2938.6,2938.4,0.9158]
[1752362364770,1.8757,2938.4,2938.1,27.4296]
[1752362365074,2.5011,2938.2,2938.1,28.9967]
[1752362365272,3.18155,2938.2,2938.1,4.7749]
[1752362365476,3.18155,2938.2,2938.1,28.0889]
[1752362365879,3.18155,2938.2,2938.1,27.1514]
[1752362366281,0.6805,2938.0,2937.9,0.9375]
[1752362366584,3.1816,2938.0,2937.9,26.47542]
[1752362368381,3.1816,2938.0,2937.9,2.4829]
[1752362368979,3.1816,2938.0,2937.9,25.7899]
[1752362370079,1.30601,2937.6,2937.5,1.5671]
[1752362370284,3.18171,2937.6,2937.5,3.33870744]
[1752362370485,3.18165,2937.8,2937.7,3.16347]
[1752362370782,3.18165,2937.8,2937.7,26.65870744]
[1752362371282,3.18165,2937.8,2937.7,1.5671]
[1752362371486,3.18165,2937.8,2937.7,0.6296]
[1752362376285,3.18165,2937.8,2937.7,1.5671]
[1752362376787,3.18165,2937.8,2937.7,2.42290744]
[1752362377087,3.18165,2937.8,2937.7,3.38040744]
[1752362380294,0.68052,2938.0,2937.9,2.5803]
[1752362380593,1.67752,2938.0,2937.9,26.74010744]
[1752362381492,0.68052,2938.0,2937.9,27.42060744]
[1752362383690,2.33152,2938.0,2937.9,27.42060744]
[1752362383890,3.24962,2938.0,2937.9,26.74010744]
[1752362384097,3.24962,2938.0,2937.9,27.42062744]
[1752362384893,3.24962,2938.0,2937.9,26.74010744]
[1752362385594,3.24962,2938.0,2937.9,27.42062744]
[1752362385795,3.24962,2938.0,2937.9,25.8843]
[1752362390093,0.68054,2937.8,2937.7,4.06360744]
[1752362390400,3.24964,2937.8,2937.7,29.92690744]
[1752362390594,3.24964,2937.8,2937.7,30.60747744]
[1752362390997,3.24964,2937.8,2937.7,29.92690744]
[1752362393099,3.24964,2937.8,2937.7,29.0711]
[1752362393300,3.24964,2937.8,2937.7,5.7881]
[1752362393601,3.24964,2937.8,2937.7,0.6325]
[1752362393804,3.24969,2937.6,2937.5,1.6228]
[1752362394001,3.24969,2937.6,2937.5,25.8673]
[1752362395103,3.24969,2937.6,2937.5,24.9098]
[1752362396107,3.24969,2937.6,2937.5,1.6228]
[1752362398111,3.24969,2937.6,2937.5,2.5803]
[1752362398604,3.24969,2937.6,2937.5,1.6228]
[1752362399201,3.24969,2937.6,2937.5,2.5803]
[1752362400105,3.24969,2937.6,2937.5,3.26091]
[1752362400305,3.24969,2937.6,2937.5,2.5803]
[1752362400502,3.24969,2937.6,2937.5,1.6228]
[1752362400707,3.24969,2937.6,2937.5,2.5803]
[1752362401816,3.24969,2937.6,2937.5,3.26091]
[1752362402004,3.24969,2937.6,2937.5,2.5803]
[1752362403614,3.24969,2937.6,2937.5,3.26091]
[1752362407614,3.24969,2937.6,2937.5,2.5803]
[1752362407814,3.24969,2937.6,2937.5,3.26091]
[1752362410914,2.33159,2937.6,2937.5,3.26091]
[1752362411310,3.23909,2937.6,2937.5,3.26091]
[1752362413817,2.5585,2937.6,2937.5,3.26091]
[1752362414021,0.68053,2937.9,2937.8,3.28702]
[1752362414221,0.68053,2937.9,2937.8,4.14282744]
[1752362414420,1.65663,2937.9,2937.8,4.14282744]
[1752362414916,0.9761,2937.9,2937.8,4.14282744]
[1752362415121,1.65662,2937.9,2937.8,4.14282744]
[1752362415514,3.22942,2937.9,2937.8,4.14282744]
[1752362422528,3.22942,2937.9,2937.8,3.46230744]
[1752362423930,3.22942,2937.9,2937.8,2.6065]
[1752362424136,3.22942,2937.9,2937.4,3.2078]
[1752362424137,2.25341,2937.5,2937.4,3.2078]
[1752362424337,1.5728,2937.3,2937.2,2.6065]
[1752362424642,2.5489,2937.3,2937.2,2.6065]
[1752362425833,3.22956,2937.3,2937.2,3.28717]
[1752362426734,3.22956,2937.3,2937.2,4.14297744]
[1752362427838,2.5489,2937.3,2937.2,4.14297744]
[1752362431338,1.6414,2937.3,2937.2,4.14297744]
[1752362432643,1.6414,2937.3,2937.2,7.35077744]
[1752362433443,2.5489,2937.3,2937.2,7.35077744]
[1752362435141,2.5489,2937.3,2937.2,4.14297744]
[1752362436844,2.4272,2937.6,2937.5,2.4598]
[1752362437147,3.10779,2937.6,2937.5,3.99621744]
[1752362440447,2.4272,2937.6,2937.5,3.99621744]
[1752362440948,3.10779,2937.6,2937.5,3.99621744]
[1752362442049,2.4272,2937.6,2937.5,3.99621744]
[1752362443248,3.10779,2937.6,2937.5,3.99621744]
[1752362451252,2.20559,2937.6,2937.5,3.31560744]
[1752362451454,3.10779,2937.6,2937.5,3.99621744]
[1752362451749,2.4272,2937.6,2937.5,3.99621744]
[1752362453953,2.4272,2937.9,2937.8,3.14032]
[1752362454148,2.4272,2937.9,2937.8,3.99612744]
[1752362454551,0.9102,2937.9,2937.8,3.99612744]
[1752362459153,1.8124,2937.9,2937.8,3.99612744]
[1752362459355,2.4272,2937.9,2937.8,3.99612744]
[1752362462475,1.29531,2938.0,2937.9,3.14032]
[1752362462662,2.19751,2938.0,2937.9,3.14032]
[1752362462961,3.10771,2938.0,2937.9,3.14032]
[1752362463558,2.4272,2938.0,2937.9,3.14032]
[1752362464162,1.525,2938.0,2937.9,3.14032]
[1752362465064,2.4272,2938.0,2937.9,3.14032]
[1752362471067,0.68047,2938.2,2937.9,3.14032]
[1752362471068,3.16654,2938.3,2938.2,3.17855]
[1752362471268,3.16654,2938.3,2938.2,2.4981]
[1752362471668,3.16654,2938.3,2938.2,1.5977]
[1752362472364,3.16654,2938.3,2938.2,0.6272]
[1752362472570,3.16657,2938.1,2938.0,1.5977]
[1752362472770,3.16657,2938.1,2938.0,2.2782]
[1752362473869,0.68052,2938.0,2937.9,0.68051]
[1752362474066,2.53684,2937.9,2937.8,0.68053]
[1752362474273,3.16664,2937.9,2937.8,2.27823]
[1752362474473,2.4861,2937.9,2937.8,3.17863]
[1752362474872,3.16662,2937.9,2937.8,3.17863]
[1752362475072,3.16662,2937.9,2937.8,6.38643]
[1752362476574,2.4861,2937.9,2937.8,7.24223744]
[1752362476873,3.16662,2937.9,2937.8,7.24223744]
[1752362478175,3.16662,2937.9,2937.8,7.24224744]
[1752362478573,3.16662,2937.9,2937.8,4.03444744]
[1752362479176,3.16662,2937.9,2937.8,3.17864]
[1752362480477,2.4861,2937.9,2937.8,3.17864]
[1752362480677,2.4861,2937.9,2937.8,4.03444744]
[1752362486280,2.4861,2937.9,2937.8,7.24224744]
[1752362487782,2.4861,2938.4,2937.9,1.70128]
[1752362487981,4.19122796,2938.3,2938.2,1.5977]
[1752362488885,4.19122796,2938.3,2938.2,2.27815]
[1752362489184,4.19122796,2938.3,2938.2,1.5977]
[1752362491084,4.19122796,2938.3,2938.2,0.6272]
[1752362492286,4.19122796,2938.3,2938.2,3.17855]
[1752362492885,4.19122796,2938.3,2938.2,2.27815]
[1752362493088,4.19122796,2938.3,2938.2,1.5977]
[1752362494985,4.19122796,2938.3,2938.2,2.27815]
[1752362495388,4.19122796,2938.3,2938.2,1.5977]
[1752362497088,4.19122796,2938.3,2938.2,2.27815]
[1752362497583,4.19122796,2938.3,2938.2,3.22825]
[1752362499791,4.19122796,2938.3,2938.2,2.5478]
[1752362500688,4.19122796,2938.3,2938.2,1.5977]
[1752362501291,4.19122796,2938.3,2938.2,2.27815]
[1752362501693,4.19122796,2938.3,2938.2,3.22825]
[1752362502185,3.51077796,2938.3,2938.2,3.22825]
[1752362503392,2.4861,2938.3,2938.2,3.22825]
[1752362503892,1.66001,2938.4,2938.3,2.28061]
[1752362504088,3.60062078,2938.4,2938.3,3.23341]
[1752362504287,2.92021078,2938.4,2938.3,3.23341]
[1752362505092,3.57251078,2938.4,2938.3,3.23341]
[1752362506293,3.22801,2938.4,2938.3,3.23341]
[1752362506792,2.5476,2938.4,2938.3,3.23341]
[1752362509990,1.6319,2938.4,2938.3,3.23341]
[1752362510995,2.5476,2938.4,2938.3,3.23341]
[1752362513099,3.22798,2938.6,2938.5,3.23338]
[1752362514197,2.5476,2938.6,2938.5,3.23338]
[1752362515902,3.22796,2938.6,2938.5,3.23338]
[1752362516201,2.5476,2938.6,2938.5,3.23338]
[1752362516799,2.5476,2938.6,2938.5,6.44118]
[1752362519697,1.6319,2938.6,2938.5,6.44118]
[1752362520100,0.9157,2939.0,2938.7,2.553]
[1752362520300,2.5476,2939.0,2938.9,4.08909744]
[1752362520803,3.22787,2939.0,2938.9,3.23329]
[1752362524304,2.5476,2939.0,2938.9,3.23329]
[1752362524502,2.5476,2939.0,2938.9,4.08909744]
[1752362525305,1.6319,2939.0,2938.9,4.08909744]
[1752362525703,3.22784,2939.2,2939.1,2.28044]
[1752362525905,3.22784,2939.2,2939.1,3.23324]
[1752362530203,3.22784,2939.2,2939.1,2.28314]
[1752362530506,3.22784,2939.2,2939.1,3.19104]
[1752362531805,0.68028,2939.1,2939.0,0.68025]
[1752362532009,2.20348,2939.1,2939.0,2.25115]
[1752362532212,3.17151,2939.4,2939.3,2.25277]
[1752362532410,3.17151,2939.4,2939.3,3.15897]
[1752362533706,3.17147,2939.4,2939.3,3.15897]
[1752362534307,2.4913,2939.4,2939.3,3.15897]
[1752362537013,3.17147,2939.4,2939.3,3.15897]
[1752362537607,2.4913,2939.4,2939.3,3.15897]
[1752362538612,5.4807,2939.8,2939.7,3.1589]
[1752362538912,6.50251015,2939.8,2939.7,1.5709]
[1752362539213,6.3792,2939.8,2939.7,0.6647]
[1752362539408,7.40102253,2939.8,2939.7,0.6647]
[1752362539712,6.72092253,2939.8,2939.7,3.1589]
[1752362539903,2.4913,2939.8,2939.7,3.1589]
[1752362540911,3.17138,2939.8,2939.7,3.1589]
[1752362557317,3.17138,2939.8,2939.7,1.5709]
[1752362557918,3.17138,2939.8,2939.7,2.251]
[1752362558216,2.4913,2939.8,2939.7,3.2466]
[1752362558617,1.5232,2939.8,2939.7,3.2466]
[1752362559117,1.5232,2939.8,2939.7,6.4544]
[1752362563119,2.4355,2939.8,2939.7,6.4544]
[1752362565220,1.2852,2940.2,2940.1,0.67998]
[1752362565419,2.1975,2940.2,2940.1,2.32018]
[1752362565620,2.1975,2940.2,2940.1,3.27728]
[1752362565919,2.4356,2940.2,2940.1,2.28168]
[1752362567222,3.11559,2940.2,2940.1,2.28168]
[1752362569224,2.4356,2940.2,2940.1,3.27728]
[1752362570124,3.11559,2940.2,2940.1,3.27728]
[1752362570420,2.4356,2940.5,2940.4,0.6446]
[1752362570629,2.4356,2940.5,2940.4,4.13304744]
[1752362570819,2.4356,2940.5,2940.4,3.27724]
[1752362571314,4.7311,2940.6,2940.5,2.32012]
[1752362571626,5.6434,2940.6,2940.5,3.27722]
[1752362571823,2.4356,2940.6,2940.5,3.27722]
[1752362572124,1.5233,2940.6,2940.5,3.27722]
[1752362572627,0.9181,2940.6,2940.5,3.27722]
[1752362574327,1.5233,2940.6,2940.5,3.27722]
[1752362574530,2.4356,2940.6,2940.5,3.27722]
[1752362575125,3.1155,2940.6,2940.5,3.27722]
[1752362575529,3.1155,2940.6,2940.5,2.5973]
[1752362575729,3.1155,2940.6,2940.5,3.27722]
[1752362575930,2.4356,2940.6,2940.5,3.27722]
[1752362577833,2.4356,2940.6,2940.5,1.32452]
[1752362578033,2.4356,2940.6,2940.5,3.27722]
[1752362582339,0.67997,2940.3,2940.2,4.1649]
[1752362582542,0.68004,2940.0,2939.9,3.2078]
[1752362582740,3.11564,2940.0,2939.9,3.2078]
[1752362583441,3.11564,2940.0,2939.9,3.88786]
[1752362585539,2.4356,2940.0,2939.9,5.48956]
[1752362585735,2.4356,2940.0,2939.9,7.34096744]
[1752362586138,3.11564,2940.0,2939.9,7.34096744]
[1752362586338,3.11564,2940.0,2939.9,5.48956]
[1752362587246,3.11564,2940.0,2939.9,3.8524]
[1752362587447,3.11564,2940.0,2939.9,3.2078]
[1752362588451,2.5602,2939.7,2939.6,4.49951]
[1752362588747,2.5602,2939.7,2939.6,5.40481]
[1752362589436,3.2403,2939.7,2939.6,4.7247]
[1752362590046,3.2403,2939.7,2939.6,3.8194]
[1752362590736,3.2403,2939.7,2939.6,4.49953]
[1752362592943,3.2403,2939.7,2939.6,3.8194]
[1752362593150,3.2403,2939.7,2939.6,3.2078]
[1752362593649,3.2403,2939.7,2939.6,3.88793]
[1752362593852,3.2403,2939.7,2939.6,0.68013]
[1752362595944,3.2403,2939.7,2939.6,2.19703]
[1752362595945,2.5602,2939.7,2939.6,2.19703]
[1752362596548,3.2403,2939.7,2939.6,2.19703]
[1752362597353,2.5602,2939.7,2939.6,2.19703]
[1752362597853,3.2403,2939.7,2939.6,2.19703]
[1752362598153,2.5602,2939.7,2939.6,2.19703]
[1752362598454,3.2403,2939.7,2939.6,2.19703]
[1752362599158,2.5602,2939.7,2939.6,2.19703]
[1752362599654,2.5602,2939.7,2939.6,3.15013]
[1752362602257,3.2403,2939.7,2939.6,3.15013]
[1752362602460,2.5602,2939.7,2939.6,3.15013]
[1752362603258,3.2403,2939.7,2939.6,3.15013]
[1752362604458,3.24033,2939.6,2939.5,3.15014]
[1752362605659,3.24033,2939.6,2939.5,4.00594744]
[1752362607762,2.5602,2939.6,2939.5,4.00594744]
[1752362610364,3.24033,2939.6,2939.5,4.00594744]
[1752362610565,2.5602,2939.6,2939.5,4.00594744]
[1752362611067,3.24033,2939.6,2939.5,4.00594744]
[1752362619073,3.24033,2939.6,2939.5,3.15014]
[1752362623073,2.5602,2939.6,2939.5,3.15014]
[1752362623977,3.24033,2939.6,2939.5,3.15014]
[1752362624278,2.5602,2939.6,2939.5,3.15014]
[1752362625179,3.24033,2939.6,2939.5,3.15014]
[1752362625379,1.29946,2940.0,2939.9,0.6109]
[1752362625682,1.5386,2940.0,2939.9,4.06305744]
[1752362625882,2.21864,2940.0,2939.9,4.06305744]
[1752362626179,3.17894,2940.0,2939.9,3.38300744]
[1752362626380,3.17894,2940.0,2939.9,4.06306744]
[1752362629483,4.20413226,2940.0,2939.9,2.5272]
[1752362629983,4.20412968,2940.0,2939.9,2.5272]
[1752362631787,4.20412968,2940.0,2939.9,3.20726]
[1752362632488,4.20412968,2940.0,2939.9,2.5272]
[1752362637390,4.20412968,2940.0,2939.9,3.20726]
[1752362640595,4.20412968,2940.0,2939.9,2.5272]
[1752362641082,4.20412968,2940.0,2939.9,3.20726]
[1752362642288,4.20412968,2940.0,2939.9,0.68006]
[1752362642492,1.29948,2939.9,2939.8,1.29096]
[1752362642694,2.21868,2939.9,2939.8,2.22346]
[1752362642885,2.21868,2939.9,2939.8,3.20726]
[1752362643398,3.17898,2939.9,2939.8,3.20726]
[1752362644192,3.17898,2939.9,2939.8,2.22346]
[1752362644394,3.17898,2939.9,2939.8,1.5434]
[1752362644789,3.17898,2939.9,2939.7,0.68008]
[1752362644790,0.6801,2939.8,2939.7,0.68008]
[1752362645089,3.17907,2939.5,2939.4,3.20737]
[1752362645988,3.17907,2939.5,2939.4,2.5272]
[1752362646589,3.17907,2939.5,2939.4,0.6109]
[1752362646793,3.1939,2939.3,2939.2,4.11341744]
[1752362647193,3.1939,2939.3,2939.2,3.43320744]
[1752362647994,3.1939,2939.3,2939.2,3.25762]
[1752362648595,2.5137,2939.3,2939.2,3.25762]
[1752362648794,2.5137,2939.3,2939.2,4.11342744]
[1752362649194,3.1939,2939.3,2939.2,4.11342744]
[1752362649495,2.5137,2939.3,2939.2,4.11342744]
[1752362651301,3.1939,2939.3,2939.2,4.11342744]
[1752362651496,4.90803,2939.8,2939.3,2.2895]
[1752362651497,1.63439,2939.4,2939.3,2.2895]
[1752362651696,1.63439,2939.4,2939.3,3.2576]
[1752362651697,2.5137,2939.4,2939.3,3.2576]
[1752362652500,3.19387,2939.4,2939.3,3.2576]
[1752362661610,2.5137,2939.4,2939.3,3.2576]
[1752362663909,3.19382,2939.7,2939.6,3.2575]
[1752362664409,3.19382,2939.7,2939.6,3.25753]
[1752362664909,3.19382,2939.7,2939.6,2.5774]
[1752362665210,3.19382,2939.7,2939.6,2.26583]
[1752362669610,3.19382,2939.7,2939.6,1.5857]
[1752362669908,3.19382,2939.7,2939.6,0.6176]
[1752362671206,2.5137,2939.5,2939.4,0.6176]
[1752362671416,3.1939,2939.4,2939.3,0.68019]
[1752362672311,3.1939,2939.4,2939.3,1.5857]
[1752362673206,3.1939,2939.3,2939.2,3.2078]
[1752362673413,1.33304,2939.1,2939.0,3.25766]
[1752362673602,2.5137,2939.1,2939.0,3.25766]
[1752362674003,3.19394,2939.1,2939.0,3.25766]
[1752362677315,2.5137,2939.1,2939.0,3.25766]
[1752362679315,3.19394,2939.1,2939.0,3.25766]
[1752362685417,3.19394,2939.1,2939.0,1.5857]
[1752362687527,3.19394,2939.1,2939.0,2.5563]
[1752362689727,3.19394,2939.1,2939.0,3.23657]
[1752362690826,3.19394,2939.1,2939.0,2.5563]
[1752362692427,3.19394,2939.1,2939.0,3.23657]
[1752362692826,3.19394,2939.1,2939.0,3.19805793]
[1752362694326,3.19394,2939.1,2939.0,3.87832793]
[1752362698526,3.19394,2939.1,2939.0,3.19805793]
[1752362698830,3.19394,2939.1,2939.0,0.6176]
[1752362700428,0.68034,2938.8,2938.7,1.57902]
[1752362700626,3.15754,2938.8,2938.7,3.14982]
[1752362700925,2.4772,2938.8,2938.6,3.2078]
[1752362701130,2.24977,2938.1,2938.0,1.4989]
[1752362701429,3.15767,2938.1,2938.0,2.4695]
[1752362702020,3.15767,2938.1,2938.0,3.15]
[1752362703834,2.4772,2938.3,2938.2,2.4695]
[1752362704229,2.4772,2938.3,2938.2,3.14995]
[1752362704230,3.15763,2938.3,2938.2,3.14995]
[1752362704427,2.4772,2938.3,2938.2,3.14995]
[1752362705930,3.15763,2938.3,2938.2,3.14995]
[1752362707134,2.4772,2938.3,2938.2,3.14995]
[1752362707334,3.22079,2938.5,2938.4,3.29899]
[1752362707737,4.2500727,2938.5,2938.4,3.29899]
[1752362708237,3.5696827,2938.5,2938.4,3.29899]
[1752362708437,2.5404,2938.5,2938.4,3.29899]
[1752362708733,3.22078,2938.5,2938.4,3.29899]
[1752362710142,2.5404,2938.5,2938.4,3.29899]
[1752362710638,3.22078,2938.5,2938.4,3.29899]
[1752362711538,3.22078,2938.5,2938.4,2.6186]
[1752362712137,3.22078,2938.5,2938.4,3.29901]
[1752362712538,3.22078,2938.5,2938.4,2.6186]
[1752362712739,3.22078,2938.5,2938.4,1.6265]
[1752362713239,3.22078,2938.5,2938.4,2.30691]
[1752362714239,3.22078,2938.5,2938.4,2.6186]
[1752362714539,3.22078,2938.5,2938.4,1.6265]
[1752362714739,3.22078,2938.5,2938.4,0.6488]
[1752362719242,3.22078,2938.5,2938.2,1.6265]
[1752362719243,3.22083,2938.3,2938.2,1.6265]
[1752362719640,3.22092,2938.0,2937.9,2.3214]
[1752362719841,3.22092,2938.0,2937.9,1.6409]
[1752362720041,3.22092,2938.0,2937.9,2.32142]
[1752362720244,3.22092,2938.0,2937.9,3.29912]
[1752362721150,3.22092,2938.0,2937.9,2.6186]
[1752362721352,3.22092,2938.0,2937.9,1.6265]
[1752362721554,3.22092,2938.0,2937.9,0.6488]
[1752362721757,3.22092,2938.0,2937.7,1.6265]
[1752362721758,3.22094,2937.8,2937.7,1.6265]
[1752362722059,3.22094,2937.8,2937.7,0.6488]
[1752362722256,3.22097,2937.7,2937.6,0.68058]
[1752362722456,2.5404,2937.7,2937.6,3.29918]
[1752362728461,1.6093,2937.7,2937.6,4.15539409]
[1752362728764,1.5442,2937.9,2937.8,3.29914]
[1752362728963,1.5442,2937.9,2937.8,6.50694]
[1752362729264,2.5404,2937.9,2937.8,6.50694]
[1752362729565,3.22092,2937.9,2937.8,6.50694]
[1752362729864,2.5404,2937.9,2937.8,6.50694]
[1752362730761,2.5404,2937.9,2937.8,3.29914]
[1752362731562,3.22092,2937.9,2937.8,3.29914]
[1752362731763,2.5404,2937.9,2937.8,3.29914]
[1752362733163,3.22092,2937.9,2937.8,3.29914]
[1752362733764,2.5404,2937.9,2937.8,3.29914]
[1752362734065,3.22092,2937.9,2937.8,3.29914]
[1752362734961,3.22092,2937.9,2937.8,2.6186]
[1752362735168,1.29367,2937.7,2937.6,3.29917]
[1752362735462,3.22097,2937.7,2937.6,0.6488]
[1752362735767,3.22101,2937.5,2937.4,4.8343]
[1752362736253,3.22101,2937.5,2937.4,3.8566]
[1752362736455,1.28496,2937.3,2937.2,3.23388]
[1752362736660,3.17336,2937.3,2937.2,2.5532]
[1752362737065,3.17336,2937.3,2937.2,3.23388]
[1752362737260,3.17336,2937.3,2937.2,2.5532]
[1752362737568,3.17336,2937.3,2937.2,3.23388]
[1752362739664,3.17336,2937.3,2937.2,4.09009409]
[1752362740265,2.4927,2937.3,2937.2,4.09009409]